bitfinex/quotes_ETHUSD_20250213
["timestamp","ask_amount","ask_price","bid_price","bid_amount"]
[1739411690814,286.71684213,2755.8,2755.7,35.0]
[1739411691214,292.26684213,2755.8,2755.7,35.0]
[1739411692679,294.18813213,2755.8,2755.7,35.0]
[1739411692836,293.20569622,2755.8,2755.7,35.0]
[1739411693035,293.20569622,2755.8,2755.7,38.631]
[1739411693923,296.83440622,2755.8,2755.7,38.631]
[1739411694245,298.75569622,2755.8,2755.7,38.631]
[1739411694442,302.38440622,2755.8,2755.7,38.631]
[1739411694620,305.99901647,2755.8,2755.7,35.0]
[1739411694821,298.75569622,2755.8,2755.7,35.0]
[1739411695532,304.30569622,2755.8,2755.7,35.0]
[1739411696256,303.48999622,2755.8,2755.7,35.0]
[1739411696557,303.48999622,2755.8,2755.7,41.62884]
[1739411696755,309.03999622,2755.8,2755.7,38.0]
[1739411697558,309.03999622,2755.8,2755.7,38.33494856]
[1739411698161,314.58999622,2755.8,2755.7,38.33494856]
[1739411698939,314.58999622,2755.8,2755.7,38.60694856]
[1739411699643,320.13999622,2755.8,2755.7,38.60694856]
[1739411700845,325.68999622,2755.8,2755.7,38.60694856]
[1739411702770,331.23999622,2755.8,2755.7,38.60694856]
[1739411704132,336.78999622,2755.8,2755.7,38.60694856]
[1739411705275,346.75760622,2755.8,2755.7,38.60694856]
[1739411705459,350.37221647,2755.8,2755.7,38.60694856]
[1739411705783,343.12889622,2755.8,2755.7,38.60694856]
[1739411706557,348.67889622,2755.8,2755.7,38.60694856]
[1739411707033,347.88999622,2755.8,2755.7,38.60694856]
[1739411707238,347.88999622,2755.8,2755.7,42.23578856]
[1739411708388,353.43999622,2755.8,2755.7,38.60694856]
[1739411708538,353.43999622,2755.8,2755.7,42.23578856]
[1739411709139,353.43999622,2755.8,2755.7,38.60694856]
[1739411709339,353.43999622,2755.8,2755.7,42.23578856]
[1739411709575,358.98999622,2755.8,2755.7,42.23578856]
[1739411709882,358.98999622,2755.8,2755.7,42.78578856]
[1739411710740,364.53999622,2755.8,2755.7,42.78578856]
[1739411710945,364.53999622,2755.8,2755.7,43.59798856]
[1739411711142,364.53999622,2755.8,2755.7,45.61298856]
[1739411711766,360.91127622,2755.8,2755.7,45.61298856]
[1739411711945,361.01819622,2755.8,2755.7,45.61298856]
[1739411712766,359.20383622,2755.8,2755.7,45.61298856]
[1739411712977,357.38947622,2755.8,2755.7,45.61298856]
[1739411713164,362.93947622,2755.8,2755.7,45.61298856]
[1739411713476,362.93947622,2755.8,2755.7,43.61298856]
[1739411714044,362.93947622,2755.8,2755.7,45.61298856]
[1739411714592,368.48947622,2755.8,2755.7,45.61298856]
[1739411715684,372.22511622,2755.8,2755.7,45.61298856]
[1739411715887,372.22511622,2755.8,2755.7,43.34098856]
[1739411716183,372.22511622,2755.8,2755.7,43.04798856]
[1739411716685,372.22511622,2755.8,2755.7,43.59798856]
[1739411716848,377.77511622,2755.8,2755.7,43.59798856]
[1739411718121,383.32511622,2755.8,2755.7,43.59798856]
[1739411719295,388.87511622,2755.8,2755.7,43.59798856]
[1739411719989,388.87511622,2755.8,2755.7,43.32598856]
[1739411720295,388.87511622,2755.8,2755.7,43.59798856]
[1739411720456,394.42511622,2755.8,2755.7,43.59798856]
[1739411721829,399.97511622,2755.8,2755.7,43.59798856]
[1739411723302,405.52511622,2755.8,2755.7,43.59798856]
[1739411724111,405.52511622,2755.8,2755.7,43.32598856]
[1739411724263,405.52511622,2755.8,2755.7,43.59798856]
[1739411724664,411.07511622,2755.8,2755.7,38.88494856]
[1739411724956,411.07511622,2755.8,2755.7,39.15694856]
[1739411725162,411.07511622,2755.8,2755.7,42.78578856]
[1739411725791,411.07511622,2755.8,2755.7,39.15694856]
[1739411726107,416.62511622,2755.8,2755.7,42.78578856]
[1739411726402,416.62511622,2755.8,2755.7,35.33494856]
[1739411726709,417.41511622,2755.8,2755.7,35.60694856]
[1739411726876,417.41511622,2755.8,2755.7,38.60694856]
[1739411727372,422.17511622,2755.8,2755.7,38.60694856]
[1739411728302,422.17511622,2755.8,2755.7,39.15694856]
[1739411728518,427.72511622,2755.8,2755.7,42.78578856]
[1739411729391,427.72511622,2755.8,2755.7,39.15694856]
[1739411729698,427.72511622,2755.8,2755.7,38.60694856]
[1739411729903,433.27511622,2755.8,2755.7,38.60694856]
[1739411731572,438.82511622,2755.8,2755.7,42.23578856]
[1739411733310,444.37511622,2755.8,2755.7,42.23578856]
[1739411733462,444.37511622,2755.8,2755.7,42.78578856]
[1739411733665,444.37511622,2755.8,2755.7,43.59128856]
[1739411734506,449.92511622,2755.8,2755.7,43.59128856]
[1739411735869,455.47511622,2755.8,2755.7,43.59128856]
[1739411736816,455.47511622,2755.8,2755.7,39.15694856]
[1739411737332,461.02511622,2755.8,2755.7,38.60694856]
[1739411737632,461.81401622,2755.8,2755.7,38.60694856]
[1739411738219,461.81401622,2755.8,2755.7,35.33494856]
[1739411738426,467.36401622,2755.8,2755.7,35.60694856]
[1739411738794,467.36401622,2755.8,2755.7,38.60694856]
[1739411739398,466.57511622,2755.8,2755.7,38.60694856]
[1739411739714,472.12511622,2755.8,2755.7,38.60694856]
[1739411740023,472.12511622,2755.8,2755.7,42.23578856]
[1739411740939,477.67511622,2755.8,2755.7,42.78578856]
[1739411741243,477.67511622,2755.8,2755.7,42.23578856]
[1739411741621,477.67511622,2755.8,2755.7,38.60694856]
[1739411742014,483.22511622,2755.8,2755.7,38.60694856]
[1739411742419,483.22511622,2755.8,2755.7,42.23578856]
[1739411743313,488.77511622,2755.8,2755.7,42.23578856]
[1739411744311,488.77511622,2755.8,2755.7,42.78578856]
[1739411744516,494.32511622,2755.8,2755.7,42.78578856]
[1739411745246,494.32511622,2755.8,2755.7,38.60694856]
[1739411745443,495.15571622,2755.8,2755.7,38.60694856]
[1739411745643,500.70571622,2755.8,2755.7,38.60694856]
[1739411745847,500.70571622,2755.8,2755.7,42.23578856]
[1739411746935,505.42511622,2755.8,2755.7,42.78578856]
[1739411748057,510.97511622,2755.8,2755.7,42.78578856]
[1739411749449,516.52511622,2755.8,2755.7,42.78578856]
[1739411751147,522.07511622,2755.8,2755.7,42.78578856]
[1739411751657,513.00331622,2755.8,2755.7,49.65038856]
[1739411751959,500.38535616,2755.8,2755.7,58.69038856]
[1739411752248,498.57099616,2755.8,2755.7,59.05368856]
[1739411752445,496.86355616,2755.8,2755.7,59.05368856]
[1739411752614,496.12443946,2755.8,2755.7,59.05368856]
[1739411753117,494.99020138,2755.8,2755.7,58.75368856]
[1739411753520,500.54020138,2755.8,2755.7,58.75368856]
[1739411754019,500.54020138,2755.8,2755.7,58.39038856]
[1739411754853,506.09020138,2755.8,2755.7,58.39038856]
[1739411755150,506.09020138,2755.8,2755.7,55.28150574]
[1739411756149,511.64020138,2755.8,2755.7,55.28150574]
[1739411756449,511.64020138,2755.8,2755.7,53.28150574]
[1739411756609,511.64020138,2755.8,2755.7,55.28150574]
[1739411757041,511.64020138,2755.8,2755.7,53.28150574]
[1739411757203,517.19020138,2755.8,2755.7,53.00950574]
[1739411757403,517.19020138,2755.8,2755.7,52.71650574]
[1739411757603,517.19020138,2755.8,2755.7,51.88990574]
[1739411757807,517.19020138,2755.8,2755.7,42.94990574]
[1739411758038,517.19020138,2755.8,2755.7,39.94990574]
[1739411758450,522.74020138,2755.8,2755.7,42.94990574]
[1739411758747,522.74020138,2755.8,2755.7,39.94990574]
[1739411759059,522.74020138,2755.8,2755.7,36.04906574]
[1739411759209,522.74020138,2755.8,2755.7,38.60694856]
[1739411759410,522.74020138,2755.8,2755.7,35.60694856]
[1739411759411,530.81272163,2755.8,2755.7,35.60694856]
[1739411759610,536.36272163,2755.8,2755.7,35.33494856]
[1739411759804,536.36272163,2755.8,2755.7,38.96594856]
[1739411760108,536.36272163,2755.8,2755.7,35.33494856]
[1739411760515,536.36272163,2755.8,2755.7,35.0]
[1739411760715,536.36272163,2755.8,2755.7,38.0]
[1739411760916,541.91272163,2755.8,2755.7,35.0]
[1739411762051,541.91272163,2755.8,2755.7,38.0]
[1739411762252,547.46272163,2755.8,2755.7,38.0]
[1739411763490,553.01272163,2755.8,2755.7,38.0]
[1739411764692,553.01272163,2755.8,2754.3,12.33177064]
[1739411764693,0.7877,2755.7,2754.3,12.33177064]
[1739411764893,551.94658227,2755.8,2754.5,3.904]
[1739411764894,0.7877,2755.5,2754.5,3.904]
[1739411765062,0.7877,2755.0,2754.6,3.0]
[1739411765250,4.41747,2755.0,2754.6,3.0]
[1739411765451,0.7877,2755.0,2754.6,3.0]
[1739411765684,0.7877,2755.0,2754.9,38.0]
[1739411765997,4.41746,2755.0,2754.9,38.903]
[1739411766193,9.96746,2755.0,2754.9,41.631]
[1739411766348,11.327174,2755.0,2754.9,38.631]
[1739411766555,6.3377,2755.0,2754.9,38.631]
[1739411766881,6.3377,2755.0,2754.9,42.181]
[1739411767287,11.8877,2755.0,2754.9,42.181]
[1739411768477,17.4377,2755.0,2754.9,42.181]
[1739411769508,16.65,2755.0,2754.9,45.81089]
[1739411769885,22.2,2755.0,2754.9,45.81089]
[1739411770411,22.2,2755.0,2754.9,46.14478794]
[1739411771275,27.75,2755.0,2754.9,46.14478794]
[1739411772418,33.3,2755.0,2754.9,49.53655858]
[1739411772914,33.3,2755.0,2754.9,50.36275858]
[1739411773418,31.48512,2755.0,2754.9,59.31775858]
[1739411773593,37.03512,2755.0,2754.9,59.31775858]
[1739411773793,33.40536,2755.0,2754.9,59.31775858]
[1739411774937,31.69584,2755.0,2754.9,66.62775858]
[1739411775126,29.88096,2755.0,2754.9,66.62775858]
[1739411775323,20.25656,2755.0,2754.9,66.62775858]
[1739411775528,20.25656,2755.0,2754.9,66.82775858]
[1739411776149,12.32227094,2755.0,2754.9,66.92775858]
[1739411776441,7.93722094,2755.0,2754.9,66.92775858]
[1739411776647,2.49258094,2755.0,2754.9,66.92775858]
[1739411777315,8.04258094,2755.0,2754.9,66.92775858]
[1739411778942,13.59258094,2755.0,2754.9,66.92775858]
[1739411779739,12.97518094,2755.0,2754.9,66.92775858]
[1739411780246,18.52518094,2755.0,2754.9,66.82775858]
[1739411780715,18.52518094,2755.0,2754.9,64.07775858]
[1739411780916,18.52518094,2755.0,2754.9,61.34975858]
[1739411781239,18.52518094,2755.0,2754.9,60.23655858]
[1739411781444,24.07518094,2755.0,2754.9,46.25855858]
[1739411781802,24.07518094,2755.0,2754.9,49.80855858]
[1739411782242,24.07518094,2755.0,2754.9,49.25855858]
[1739411782740,29.62518094,2755.0,2754.9,49.82355858]
[1739411783042,29.62518094,2755.0,2754.9,51.82355858]
[1739411783199,21.81566094,2755.0,2754.9,66.86325858]
[1739411783402,21.81566094,2755.0,2754.9,67.06325858]
[1739411783827,27.36566094,2755.0,2754.9,67.39673244]
[1739411784334,27.36566094,2755.0,2754.9,64.92473244]
[1739411784509,27.36566094,2755.0,2754.9,60.57003244]
[1739411784708,27.36566094,2755.0,2754.9,42.69014244]
[1739411784929,28.14916094,2755.0,2754.9,39.5703718]
[1739411785136,38.25052261,2755.0,2754.9,39.5703718]
[1739411785850,38.25052261,2755.0,2754.9,42.23647386]
[1739411786198,34.62076261,2755.0,2754.9,42.78647386]
[1739411786416,40.17076261,2755.0,2754.9,41.903]
[1739411787354,40.17076261,2755.0,2754.9,42.453]
[1739411787706,49.35052261,2755.0,2754.9,42.453]
[1739411788107,49.35052261,2755.0,2754.9,38.272]
[1739411788624,49.35052261,2755.0,2754.9,38.0]
[1739411789120,54.90052261,2755.0,2754.9,35.0]
[1739411790454,60.45052261,2755.0,2754.9,35.0]
[1739411791155,59.52892094,2755.0,2754.9,35.55]
[1739411791350,55.89916094,2755.0,2754.9,0.55]
[1739411791561,61.44916094,2755.0,2754.9,0.55]
[1739411791741,60.66566094,2755.0,2754.9,4.17989]
[1739411791927,60.66566094,2755.0,2754.9,45.57166064]
[1739411792131,60.66566094,2755.0,2754.9,45.58666064]
[1739411792649,60.66566094,2755.0,2754.9,46.35216064]
[1739411792855,66.21566094,2755.0,2754.9,46.6859718]
[1739411793268,66.21566094,2755.0,2754.9,47.01976601]
[1739411793669,66.21566094,2755.0,2754.9,47.87781285]
[1739411793966,66.21566094,2755.0,2754.9,49.87781285]
[1739411794258,71.76566094,2755.0,2754.9,49.87781285]
[1739411794553,68.13590094,2755.0,2754.9,64.12781285]
[1739411795946,73.68590094,2755.0,2754.9,62.12781285]
[1739411796330,73.68590094,2755.0,2754.9,64.12781285]
[1739411796538,73.68590094,2755.0,2754.9,61.36231285]
[1739411796734,73.68590094,2755.0,2754.9,61.63431285]
[1739411797123,79.23590094,2755.0,2754.9,61.63431285]
[1739411798176,79.23590094,2755.0,2754.9,63.63431285]
[1739411798367,84.78590094,2755.0,2754.9,63.63431285]
[1739411798673,84.78590094,2755.0,2754.9,61.63431285]
[1739411799664,90.33590094,2755.0,2754.9,61.63431285]
[1739411801089,95.88590094,2755.0,2754.9,61.63431285]
[1739411802557,101.43590094,2755.0,2754.9,61.63431285]
[1739411803984,106.98590094,2755.0,2754.9,61.63431285]
[1739411805269,112.53590094,2755.0,2754.9,61.63431285]
[1739411805486,112.53590094,2755.0,2754.9,63.63431285]
[1739411806609,118.08590094,2755.0,2754.9,63.63431285]
[1739411807292,108.46150094,2755.0,2754.9,64.44551285]
[1739411807496,108.46150094,2755.0,2754.9,64.74551285]
[1739411807677,108.46150094,2755.0,2754.9,62.64551285]
[1739411807882,114.01150094,2755.0,2754.9,64.74551285]
[1739411808295,114.01150094,2755.0,2754.9,64.64551285]
[1739411808296,112.87699094,2755.0,2754.9,64.64551285]
[1739411808499,112.87699094,2755.0,2754.9,64.74551285]
[1739411808699,112.87699094,2755.0,2754.9,64.64551285]
[1739411809218,118.42699094,2755.0,2754.9,64.64551285]
[1739411810133,118.42699094,2755.0,2754.9,62.63060994]
[1739411810333,118.42699094,2755.0,2754.9,68.45260994]
[1739411810482,123.97699094,2755.0,2754.9,68.45260994]
[1739411810685,123.97699094,2755.0,2754.9,68.11879878]
[1739411811789,129.52699094,2755.0,2754.9,68.11879878]
[1739411813230,135.07699094,2755.0,2754.9,68.11879878]
[1739411813631,135.07699094,2755.0,2754.9,67.25927075]
[1739411814425,140.62699094,2755.0,2754.9,63.43727075]
[1739411815092,140.62699094,2755.0,2754.9,62.62607075]
[1739411815295,140.62699094,2755.0,2754.9,60.07607075]
[1739411815804,146.17699094,2755.0,2754.9,60.35407075]
[1739411816012,146.17699094,2755.0,2754.9,60.62607075]
[1739411817235,146.17699094,2755.0,2754.9,60.44097366]
[1739411817443,151.72699094,2755.0,2754.9,60.44097366]
[1739411817942,151.72699094,2755.0,2754.9,38.72408366]
[1739411818145,152.55449094,2755.0,2754.9,38.99608366]
[1739411818435,156.18425094,2755.0,2754.9,35.60579421]
[1739411818602,165.34886119,2755.0,2754.9,35.60579421]
[1739411818994,165.34886119,2755.0,2754.9,35.33379421]
[1739411819219,165.34886119,2755.0,2754.9,35.60579421]
[1739411819420,165.34886119,2755.0,2754.9,38.60579421]
[1739411819842,170.89886119,2755.0,2754.9,38.60579421]
[1739411820339,170.89886119,2755.0,2754.9,35.60579421]
[1739411820503,170.89886119,2755.0,2754.9,35.272]
[1739411820900,170.89886119,2755.0,2754.9,35.0]
[1739411821105,176.44886119,2755.0,2754.9,38.0]
[1739411821500,3.63015,2754.7,2754.6,0.272]
[1739411821722,5.157967,2754.7,2754.6,0.272]
[1739411822040,4.43235,2754.4,2754.3,3.0]
[1739411822244,4.43235,2754.4,2754.3,3.822]
[1739411822458,4.43248,2754.3,2754.2,3.633]
[1739411822615,4.43261,2754.2,2754.1,0.2792619]
[1739411823132,4.43261,2754.2,2754.1,35.2792619]
[1739411823368,4.43261,2754.2,2754.1,35.0072619]
[1739411823844,9.98261,2754.2,2754.1,35.0072619]
[1739411824166,12.0350693,2754.2,2754.1,35.0072619]
[1739411824479,12.0350693,2754.2,2754.1,38.0072619]
[1739411825084,17.5850693,2754.2,2754.1,38.0072619]
[1739411826169,23.1350693,2754.2,2754.1,38.0072619]
[1739411827479,28.6850693,2754.2,2754.1,38.0072619]
[1739411828805,28.5518,2754.2,2754.1,38.5572619]
[1739411829993,34.1018,2754.2,2754.1,38.5572619]
[1739411830468,37.73261,2754.2,2754.1,38.5572619]
[1739411831214,43.28261,2754.2,2754.1,38.5572619]
[1739411832102,43.28261,2754.2,2754.1,38.0072619]
[1739411832310,46.89722025,2754.2,2754.1,38.0072619]
[1739411832506,52.44722025,2754.2,2754.1,38.0072619]
[1739411832866,3.63196,2753.4,2753.0,8.70028945]
[1739411833065,3.63196,2753.4,2753.1,3.906]
[1739411833066,0.8292,2753.3,2753.1,3.906]
[1739411833282,0.8292,2753.3,2753.2,3.0]
[1739411833685,6.3792,2753.3,2753.2,3.55]
[1739411833878,6.3792,2753.3,2753.2,38.55]
[1739411835012,11.9292,2753.3,2753.2,38.55]
[1739411836017,11.6788,2753.3,2753.2,38.55]
[1739411836324,17.2288,2753.3,2753.2,38.55]
[1739411837710,22.7788,2753.3,2753.2,38.55]
[1739411838816,28.3288,2753.3,2753.2,38.55]
[1739411840215,33.8788,2753.3,2753.2,38.55]
[1739411841013,37.5108,2753.3,2753.2,38.55]
[1739411841315,37.9858489,2753.3,2753.2,38.0]
[1739411841615,42.9570489,2753.3,2753.2,38.272]
[1739411841911,43.7550489,2753.3,2753.2,38.272]
[1739411842113,43.7550489,2753.3,2753.2,35.0]
[1739411842674,49.3050489,2753.3,2753.2,35.0]
[1739411842874,49.3050489,2753.3,2753.2,38.0]
[1739411843119,49.3050489,2753.3,2752.1,0.005]
[1739411843120,3.63326,2752.4,2752.1,0.005]
[1739411843416,0.798,2752.3,2752.2,3.907]
[1739411843827,4.43132,2752.3,2752.2,3.907]
[1739411843988,6.348,2752.3,2752.2,3.907]
[1739411844190,6.348,2752.3,2752.2,39.457]
[1739411844518,5.55,2752.3,2752.2,46.09045]
[1739411844714,5.55,2752.3,2752.2,45.81845]
[1739411844922,5.55,2752.3,2752.2,42.457]
[1739411845088,5.55,2752.3,2752.2,46.09045]
[1739411845290,44.4,2753.3,2753.2,3.63213]
[1739411845597,44.4,2753.3,2753.2,11.08813]
[1739411846118,44.4,2753.3,2753.2,46.08813]
[1739411846322,44.4,2753.3,2753.2,42.456]
[1739411846521,49.95,2753.3,2753.2,42.184]
[1739411846703,54.3768,2753.3,2753.2,41.906]
[1739411847017,56.88049319,2753.3,2753.2,38.272]
[1739411847702,62.43049319,2753.3,2753.2,38.272]
[1739411848018,62.43049319,2753.3,2753.2,3.272]
[1739411848324,58.79849319,2753.3,2753.2,3.272]
[1739411848612,58.79849319,2753.3,2753.2,38.0]
[1739411848826,58.79849319,2753.3,2753.2,38.272]
[1739411848977,64.34849319,2753.3,2753.2,38.272]
[1739411849475,61.05,2753.3,2753.2,38.822]
[1739411850309,66.6,2753.3,2753.2,38.822]
[1739411850720,66.6,2753.3,2753.2,38.55]
[1739411850910,66.6,2753.3,2753.2,38.272]
[1739411851514,72.15,2753.3,2753.2,38.272]
[1739411852348,75.76461025,2753.3,2753.2,38.272]
[1739411852853,81.31461025,2753.3,2753.2,38.272]
[1739411853829,77.7,2753.3,2753.2,38.272]
[1739411854155,83.25,2753.3,2753.2,38.272]
[1739411854527,83.25,2753.3,2753.2,42.45413]
[1739411854860,83.25,2753.3,2753.2,38.822]
[1739411855456,88.8,2753.3,2753.2,38.822]
[1739411856441,88.8,2753.3,2753.2,42.45413]
[1739411856642,94.35,2753.3,2753.2,42.45413]
[1739411857158,94.35,2753.3,2753.2,38.822]
[1739411857814,99.9,2753.3,2753.2,38.822]
[1739411858751,99.9,2753.3,2753.2,43.21823]
[1739411858951,99.9,2753.3,2753.2,43.22573]
[1739411859124,99.9,2753.3,2753.2,42.94623]
[1739411859329,105.45,2753.3,2753.2,38.822]
[1739411860359,109.082,2753.3,2753.2,38.822]
[1739411860656,118.24661025,2753.3,2753.2,35.0]
[1739411860818,119.01951025,2753.3,2753.2,35.272]
[1739411861019,119.01951025,2753.3,2753.2,38.272]
[1739411861659,86.46146243,2753.3,2753.2,63.25192435]
[1739411861858,27.17550459,2753.3,2753.2,64.76340929]
[1739411862032,19.7330726,2753.3,2753.2,64.86340929]
[1739411862352,5.55,2754.4,2753.2,64.86340929]
[1739411862353,44.0180805,2754.2,2754.1,7.19595]
[1739411862559,42.2026705,2754.2,2754.1,24.30279826]
[1739411862712,34.37258936,2754.2,2754.1,29.33990884]
[1739411862911,34.11702723,2754.2,2754.1,64.70320884]
[1739411863139,34.11702723,2754.2,2754.1,65.25530445]
[1739411863418,25.03997723,2754.2,2754.1,65.25530445]
[1739411863619,25.03997723,2754.2,2754.1,65.35530445]
[1739411863959,23.5815404,2754.2,2754.1,64.99200445]
[1739411864120,22.67310357,2754.2,2754.1,65.17083931]
[1739411864321,5.55,2754.4,2754.3,5.822]
[1739411864533,5.55,2754.4,2754.3,13.81658]
[1739411864745,5.55,2754.4,2754.3,14.26219058]
[1739411864935,0.00726031,2754.7,2754.6,9.19529]
[1739411865156,0.00726031,2754.7,2754.6,18.32964884]
[1739411865578,0.00726031,2754.7,2754.6,53.32964884]
[1739411867831,0.00726031,2754.7,2754.6,67.57964884]
[1739411868340,0.00726031,2754.7,2754.6,67.41003826]
[1739411868949,5.55726031,2754.7,2754.6,67.41003826]
[1739411870180,3.1e-07,2754.7,2754.6,67.41003826]
[1739411870338,167.06211125,2755.0,2754.9,7.19489]
[1739411870675,167.06211125,2755.0,2754.9,29.33473826]
[1739411871085,167.06211125,2755.0,2754.9,64.33473826]
[1739411871280,159.80259125,2755.0,2754.9,67.13013826]
[1739411871434,163.53771125,2755.0,2754.9,67.13013826]
[1739411873095,169.08771125,2755.0,2754.9,67.40513826]
[1739411873301,169.08771125,2755.0,2754.9,57.28629]
[1739411873754,169.08771125,2755.0,2754.9,57.83629]
[1739411874151,169.08771125,2755.0,2754.9,38.631]
[1739411874458,174.63771125,2755.0,2754.9,45.53589]
[1739411874886,174.63771125,2755.0,2754.9,38.906]
[1739411875351,174.63771125,2755.0,2754.9,41.906]
[1739411875548,180.18771125,2755.0,2754.9,45.53589]
[1739411875955,180.18771125,2755.0,2754.9,46.08589]
[1739411876795,185.73771125,2755.0,2754.9,46.08589]
[1739411876996,185.73771125,2755.0,2754.9,46.10089]
[1739411877312,185.73771125,2755.0,2754.9,50.35973826]
[1739411877995,191.28771125,2755.0,2754.9,50.35973826]
[1739411879284,196.83771125,2755.0,2754.9,50.35973826]
[1739411879800,196.83771125,2755.0,2754.9,64.60973826]
[1739411880702,202.38771125,2755.0,2754.9,60.35089]
[1739411881250,202.38771125,2755.0,2754.9,60.34339]
[1739411881456,202.38771125,2755.0,2754.9,60.33589]
[1739411881900,207.93771125,2755.0,2754.9,60.33589]
[1739411882397,207.93771125,2755.0,2754.9,60.33489]
[1739411882907,207.93771125,2755.0,2754.9,51.39489]
[1739411883107,213.48771125,2755.0,2754.9,51.39489]
[1739411883404,213.48771125,2755.0,2754.9,47.765]
[1739411884409,219.03771125,2755.0,2754.9,51.39489]
[1739411884799,219.03771125,2755.0,2754.9,47.765]
[1739411884992,219.03771125,2755.0,2754.9,51.39489]
[1739411885430,219.03771125,2755.0,2754.9,47.765]
[1739411885604,224.58771125,2755.0,2754.9,47.765]
[1739411886185,225.38051125,2755.0,2754.9,47.214]
[1739411886391,232.6248815,2755.0,2754.9,47.214]
[1739411886587,232.6248815,2755.0,2754.9,46.941]
[1739411886903,232.6248815,2755.0,2754.9,41.905]
[1739411887103,238.1748815,2755.0,2754.9,38.274]
[1739411888464,243.7248815,2755.0,2754.9,38.274]
[1739411889638,243.7248815,2755.0,2754.9,38.0]
[1739411889961,249.2748815,2755.0,2754.9,38.0]
[1739411890539,249.2748815,2755.0,2754.9,35.0]
[1739411891031,254.8248815,2755.0,2754.9,35.0]
[1739411892251,0.7663,2754.7,2754.4,0.273]
[1739411892459,0.7663,2754.5,2754.4,0.273]
[1739411893227,0.7663,2754.5,2754.4,38.273]
[1739411893562,9.94672,2754.5,2754.4,35.273]
[1739411894266,9.94672,2754.5,2754.4,38.273]
[1739411894654,15.49672,2754.5,2754.4,38.273]
[1739411894837,17.4533843,2754.5,2754.4,38.273]
[1739411895045,15.49672,2754.5,2754.4,38.273]
[1739411895664,15.49672,2754.5,2754.4,38.0]
[1739411895865,21.04672,2754.5,2754.4,38.0]
[1739411897033,26.59672,2754.5,2754.4,38.0]
[1739411898332,32.14672,2754.5,2754.4,38.0]
[1739411899670,38.62013621,2754.5,2754.4,38.0]
[1739411900639,38.62013621,2754.5,2754.4,35.0]
[1739411900835,44.17013621,2754.5,2754.4,35.0]
[1739411902157,50.22013621,2754.5,2754.4,35.0]
[1739411902689,50.93467106,2754.5,2754.4,35.0]
[1739411902988,49.29672,2754.5,2754.4,38.0]
[1739411903340,54.84672,2754.5,2754.4,38.0]
[1739411904563,60.39672,2754.5,2754.4,38.0]
[1739411904755,64.01133025,2754.5,2754.4,38.0]
[1739411905863,69.56133025,2754.5,2754.4,35.0]
[1739411907187,75.11133025,2754.5,2754.4,35.0]
[1739411908373,80.66133025,2754.5,2754.4,35.0]
[1739411909386,3.63095,2754.1,2754.0,0.272]
[1739411909596,7.26175,2754.2,2754.0,0.272]
[1739411909793,3.63082,2754.2,2754.1,41.633]
[1739411909992,3.63082,2754.2,2754.1,38.0]
[1739411909993,7.26174,2754.2,2754.1,38.0]
[1739411910883,12.81174,2754.2,2754.1,38.0]
[1739411911092,9.18082,2754.2,2754.1,38.0]
[1739411911272,9.18081,2754.2,2754.1,38.0]
[1739411912199,14.73081,2754.2,2754.1,38.0]
[1739411913543,20.28081,2754.2,2754.1,38.0]
[1739411913872,16.65,2754.2,2754.1,41.633]
[1739411914669,22.2,2754.2,2754.1,41.633]
[1739411915601,25.83081,2754.2,2754.1,41.633]
[1739411916105,31.38081,2754.2,2754.1,41.633]
[1739411916699,27.75,2754.2,2754.1,41.633]
[1739411917086,31.38081,2754.2,2754.1,41.633]
[1739411917302,36.93081,2754.2,2754.1,41.633]
[1739411918118,36.93081,2754.2,2754.1,6.633]
[1739411918782,42.48081,2754.2,2754.1,6.633]
[1739411919089,42.48081,2754.2,2754.1,41.633]
[1739411920017,48.03081,2754.2,2754.1,41.633]
[1739411921075,53.58081,2754.2,2754.1,41.633]
[1739411922020,53.58081,2754.2,2754.1,38.0]
[1739411922178,56.88887306,2754.2,2754.1,38.272]
[1739411922379,62.43887306,2754.2,2754.1,38.272]
[1739411922876,59.89451,2754.2,2754.1,38.272]
[1739411923201,59.89451,2754.2,2754.1,38.0]
[1739411923588,65.44451,2754.2,2754.1,38.0]
[1739411923798,65.44451,2754.2,2753.7,3.633]
[1739411923799,3.63134,2753.8,2753.7,3.633]
[1739411924030,3.63147,2753.7,2753.6,0.272]
[1739411924523,3.63147,2753.7,2753.6,38.272]
[1739411924677,9.18147,2753.7,2753.6,38.272]
[1739411926318,14.73147,2753.7,2753.6,38.272]
[1739411926687,15.49807,2753.7,2753.6,38.272]
[1739411927224,15.49807,2753.7,2753.6,38.0]
[1739411927517,21.04807,2753.7,2753.6,38.272]
[1739411928736,26.59807,2753.7,2753.6,38.272]
[1739411930457,32.14807,2753.7,2753.6,38.272]
[1739411931635,33.3,2753.7,2753.6,38.272]
[1739411931851,33.3,2753.7,2753.6,39.5904]
[1739411932211,36.93147,2753.7,2753.6,39.5904]
[1739411932855,36.93147,2753.7,2753.6,38.822]
[1739411933074,42.48147,2753.7,2753.6,38.822]
[1739411933759,38.85,2753.7,2753.6,38.272]
[1739411933962,42.48147,2753.7,2753.6,38.272]
[1739411934464,48.03147,2753.7,2753.6,38.272]
[1739411935563,53.58147,2753.7,2753.6,38.272]
[1739411936884,59.13147,2753.7,2753.6,38.272]
[1739411937545,55.5,2753.7,2753.6,38.272]
[1739411938248,61.05,2753.7,2753.6,38.272]
[1739411938697,64.68147,2753.7,2753.6,38.272]
[1739411939504,64.68147,2753.7,2753.6,38.0]
[1739411939505,70.23147,2753.7,2753.6,38.0]
[1739411939794,73.84608025,2753.7,2753.6,38.272]
[1739411940400,70.23147,2753.7,2753.6,38.272]
[1739411940994,75.78147,2753.7,2753.6,38.272]
[1739411942183,81.33147,2753.7,2753.6,38.272]
[1739411943372,86.88147,2753.7,2753.6,38.272]
[1739411944607,92.43147,2753.7,2753.6,38.272]
[1739411945759,97.98147,2753.7,2753.6,38.272]
[1739411945908,101.59608025,2753.7,2753.6,38.0]
[1739411946454,3.63279,2752.7,2752.5,0.7633]